bitfinex/quotes_ETHUSD_20240811
["timestamp","ask_amount","ask_price","bid_price","bid_amount"]
[1723368159066,2.3095,2713.4,2712.0,1.476473]
[1723368159067,0.04901334,2712.2,2712.0,1.476473]
[1723368159268,0.04901334,2712.0,2711.7,0.3692]
[1723368159468,0.04901334,2712.0,2711.8,0.3692]
[1723368160392,0.04901334,2712.0,2711.1,2.71755419]
[1723368160393,0.04901334,2711.4,2711.0,0.57754071]
[1723368160592,0.04901334,2711.2,2711.1,0.2]
[1723368160965,0.04901334,2711.6,2711.1,0.07374709]
[1723368161770,0.04901334,2712.0,2711.1,0.07374709]
[1723368162202,0.04901334,2712.0,2711.2,0.1]
[1723368162401,0.04901334,2712.0,2711.3,0.0737287]
[1723368162710,0.04901334,2711.3,2711.0,0.57754071]
[1723368163006,0.04901334,2711.1,2711.0,0.57754071]
[1723368163205,3.719,2713.8,2711.0,0.57754071]
[1723368163206,0.04901334,2711.3,2711.0,0.57754071]
[1723368163504,0.04901334,2711.1,2711.0,0.57754071]
[1723368163877,0.04901334,2711.1,2710.5,0.00122882]
[1723368164109,2.4471,2711.6,2710.5,1.47845682]
[1723368164110,0.04901334,2710.9,2710.5,1.47845682]
[1723368164300,0.04901334,2710.9,2710.6,0.3692]
[1723368164612,0.04901334,2710.9,2710.5,0.00122882]
[1723368165372,0.04901334,2711.5,2710.5,0.07498632]
[1723368165576,2.4471,2711.6,2710.5,0.07498632]
[1723368165774,2.4471,2711.6,2710.5,0.00122882]
[1723368165775,0.04901334,2711.2,2710.5,0.00122882]
[1723368166207,2.4471,2711.6,2710.5,0.00122882]
[1723368166208,0.04901334,2711.0,2710.5,0.00122882]
[1723368166424,0.04901334,2711.2,2710.5,0.0749818]
[1723368166724,0.04901334,2711.0,2710.6,0.55]
[1723368166869,0.04901334,2711.0,2710.5,0.55122882]
[1723368167199,0.04901334,2710.9,2710.5,0.55122882]
[1723368167697,0.04901334,2711.3,2710.5,0.55122882]
[1723368168005,0.04901334,2711.0,2710.5,0.55122882]
[1723368168377,0.04901334,2711.3,2710.6,0.44295576]
[1723368168710,0.04901334,2711.3,2710.7,0.55]
[1723368169011,0.04901334,2711.3,2710.8,0.07375144]
[1723368169237,0.04901334,2711.3,2710.9,0.55]
[1723368169421,0.04901334,2711.3,2711.0,0.07375144]
[1723368169900,0.04901334,2711.9,2711.0,0.07375144]
[1723368170101,0.04901334,2711.9,2711.2,3.725]
[1723368170414,0.04901334,2711.9,2711.3,3.62373376]
[1723368170733,0.04901334,2712.5,2711.3,3.62373376]
[1723368171097,0.04901334,2712.4,2711.3,3.62373376]
[1723368171330,0.04901334,2712.2,2711.3,3.62373376]
[1723368171841,0.04901334,2711.8,2711.3,3.55]
[1723368172200,0.04901334,2712.2,2711.3,3.55]
[1723368172407,2.4471,2712.7,2711.3,3.55]
[1723368172408,0.04901334,2711.9,2711.3,3.55]
[1723368173994,0.04901334,2712.2,2711.3,3.55]
[1723368174400,0.04901334,2712.0,2711.3,3.55]
[1723368174700,0.04901334,2712.0,2711.4,0.03471216]
[1723368174896,0.04901334,2711.8,2711.4,0.03471216]
[1723368175903,0.04901334,2711.8,2711.4,0.13471216]
[1723368176238,0.04901334,2712.0,2711.5,0.62372791]
[1723368176535,0.04901334,2712.3,2711.5,0.65843069]
[1723368176841,0.04901334,2712.2,2711.5,0.58470278]
[1723368177137,0.04901334,2712.2,2711.6,0.55]
[1723368177434,2.4471,2712.7,2711.5,0.03470278]
[1723368177435,0.04901334,2711.9,2711.5,0.03470278]
[1723368177638,0.04901334,2712.1,2711.7,0.03468404]
[1723368177846,0.04901334,2712.1,2711.6,0.07372726]
[1723368178038,0.04901334,2711.9,2711.8,0.03467467]
[1723368178342,0.04901334,2711.9,2711.7,0.03468404]
[1723368178541,0.04901334,2711.9,2711.8,0.03467467]
[1723368178841,0.04901334,2712.4,2711.8,0.03467467]
[1723368179004,0.04901334,2712.4,2711.9,0.07372126]
[1723368179204,0.04901334,2712.4,2712.0,0.55]
[1723368179458,0.04901334,2712.4,2712.1,0.03464656]
[1723368179600,0.04901334,2712.4,2712.1,0.10836846]
[1723368179800,0.04901334,2712.6,2712.1,0.10836846]
[1723368180005,0.04901334,2712.4,2712.2,0.55]
[1723368180443,0.04901334,2712.4,2712.3,0.03504189]
[1723368180612,0.04901334,2711.9,2711.3,3.0]
[1723368181043,2.4471,2712.7,2711.4,0.03512622]
[1723368181044,0.04901334,2711.7,2711.4,0.03512622]
[1723368181350,0.04901334,2711.5,2711.0,0.1]
[1723368181743,0.04901334,2711.5,2710.9,3.72]
[1723368182040,0.04901334,2711.5,2710.5,3.45987013]
[1723368182041,0.04901334,2711.1,2710.5,0.00122882]
[1723368182408,0.04901334,2711.1,2710.5,0.07497861]
[1723368182748,0.04901334,2711.1,2710.5,0.00122882]
[1723368183038,0.04901334,2711.3,2710.5,0.00122882]
[1723368183242,0.04901334,2711.3,2710.5,0.07497616]
[1723368183452,0.04901334,2711.3,2710.5,0.00122882]
[1723368183634,0.04901334,2711.1,2710.5,3.00122882]
[1723368183942,0.04901334,2711.1,2710.5,0.00122882]
[1723368184144,0.04901334,2711.1,2710.5,3.00122882]
[1723368184345,0.04901334,2710.9,2710.5,0.00122882]
[1723368184751,0.04901334,2711.1,2710.5,0.10122882]
[1723368184924,0.04901334,2711.1,2710.5,0.00122882]
[1723368185118,0.04901334,2711.1,2710.5,3.00122882]
[1723368185353,0.04901334,2711.1,2710.5,0.00122882]
[1723368185949,2.4922,2711.8,2710.5,0.00122882]
[1723368185950,0.04901334,2710.8,2710.5,0.00122882]
[1723368186166,0.04901334,2710.6,2710.5,0.00122882]
[1723368186612,0.04901334,2710.6,2710.5,0.63925282]
[1723368190655,0.04901334,2710.8,2710.5,1.188024]
[1723368190857,0.04901334,2710.8,2710.6,0.62375596]
[1723368191224,0.04901334,2711.0,2710.6,0.55]
[1723368191423,0.04901334,2711.0,2710.7,0.07375942]
[1723368191634,0.04901334,2710.7,2710.6,0.55]
[1723368192071,0.04901334,2710.9,2710.6,0.6237606]
[1723368192273,2.54121334,2711.4,2710.6,0.6237606]
[1723368192574,0.04901334,2711.4,2710.7,3.46156401]
[1723368192782,2.4922,2711.9,2710.9,3.46156401]
[1723368192783,0.04901334,2711.8,2710.9,3.46156401]
[1723368193282,0.04901334,2711.4,2711.0,3.55]
[1723368193637,0.04901334,2711.4,2711.1,3.0]
[1723368193850,2.4922,2711.9,2711.0,0.55]
[1723368193851,0.04901334,2711.6,2711.0,0.55]
[1723368194057,0.04901334,2711.5,2711.0,0.55]
[1723368194268,0.04901334,2711.3,2711.1,0.07497336]
[1723368194445,0.04901334,2711.4,2711.2,0.55122851]
[1723368194646,0.04901334,2711.4,2711.3,0.00122846]
[1723368194849,0.04901334,2711.6,2711.3,0.00122846]
[1723368195640,0.04901334,2711.6,2711.3,0.07497008]
[1723368195841,0.04901334,2711.6,2711.4,0.55122841]
[1723368196052,0.04901334,2711.8,2711.5,0.07497003]
[1723368196252,0.04901334,2711.8,2711.6,0.55122832]
[1723368196449,0.04901334,2711.8,2711.7,0.07373491]
[1723368196649,0.04901334,2711.8,2711.7,0.62496319]
[1723368197138,0.04901334,2711.8,2711.7,0.55122828]
[1723368197335,0.04901334,2711.8,2711.7,0.00122828]
[1723368197644,0.04901334,2711.8,2711.7,0.07496326]
[1723368198064,0.04901334,2711.8,2711.7,0.00122828]
[1723368198379,0.04901334,2711.8,2711.7,0.07496326]
[1723368199150,0.04901334,2711.8,2711.7,0.62496326]
[1723368199492,2.4922,2712.4,2711.7,0.62496326]
[1723368199493,0.04901334,2712.3,2711.7,0.62496326]
[1723368199649,0.01,2713.8,2711.7,0.62496326]
[1723368199650,0.04901334,2712.5,2712.0,2.24907473]
[1723368199847,0.04901334,2712.3,2712.1,2.24907473]
[1723368200168,0.04901334,2712.3,2712.2,0.55]
[1723368200380,0.04901334,2712.3,2712.0,0.55]
[1723368200569,0.04901334,2712.3,2712.0,2.79907473]
[1723368200770,0.04901334,2712.3,2712.1,3.0]
[1723368201248,0.04901334,2712.0,2711.9,2.24907473]
[1723368201584,0.04901334,2713.3,2711.9,4.97118609]
[1723368201748,0.04901334,2712.8,2712.7,2.24928555]
[1723368201946,0.04901334,2712.8,2712.4,2.24928555]
[1723368202161,0.04901334,2712.7,2712.3,5.25021754]
[1723368202381,0.04901334,2712.7,2712.4,2.80021754]
[1723368202684,0.04901334,2713.1,2712.6,2.25021754]
[1723368202931,0.04901334,2712.8,2712.7,2.80021754]
[1723368203059,0.04901334,2712.8,2712.7,3.0]
[1723368203249,0.04901334,2712.8,2712.7,0.00122783]
[1723368204172,2.54311334,2712.8,2712.7,0.00122783]
[1723368206063,0.04901334,2712.8,2712.7,0.00122783]
[1723368206718,0.04901334,2713.0,2712.7,0.00122783]
[1723368206917,0.04901334,2713.0,2712.7,0.55122783]
[1723368207121,0.04901334,2713.0,2712.8,0.0737047]
[1723368207337,0.04901334,2712.8,2712.7,0.00122783]
[1723368207899,2.54311334,2712.8,2712.7,0.00122783]
[1723368208494,2.79742467,2712.8,2712.7,0.00122783]
[1723368209095,2.79742467,2712.8,2711.5,3.72]
[1723368209295,0.04901334,2711.6,2711.5,3.72]
[1723368211026,0.04901334,2711.6,2710.9,2.25021754]
[1723368211234,0.04901334,2711.6,2710.9,2.25323891]
[1723368211524,0.04901334,2711.6,2711.0,0.62374494]
[1723368211726,0.04901334,2711.6,2711.0,5.87698385]
[1723368211927,0.04901334,2711.6,2711.0,2.87698385]
[1723368212118,0.04901334,2711.6,2711.1,3.0]
[1723368212425,0.04901334,2711.6,2711.2,0.55]
[1723368212628,0.04901334,2711.4,2711.2,0.55]
[1723368212826,0.04901334,2711.2,2711.0,3.0]
[1723368213024,0.04901334,2711.6,2711.3,0.07374602]
[1723368213231,0.1,2713.7,2710.9,2.35323891]
[1723368213232,0.04901334,2711.4,2711.0,2.25323891]
[1723368213429,0.04901334,2711.6,2711.1,0.07373998]
[1723368213604,0.04901334,2711.4,2711.0,5.25323891]
[1723368213808,0.04901334,2711.4,2711.0,2.25323891]
[1723368214012,0.04901334,2711.4,2711.1,0.55]
[1723368214207,0.04901334,2711.2,2710.9,0.55]
[1723368214408,0.04901334,2711.5,2711.0,0.07374587]
[1723368214608,0.04901334,2711.5,2711.1,0.55]
[1723368214814,0.04901334,2711.3,2711.1,0.55]
[1723368215404,0.04901334,2711.1,2711.0,0.55]
[1723368216108,2.4941,2712.5,2710.5,10.45048055]
[1723368216109,0.04901334,2710.9,2710.5,0.638024]
[1723368216544,0.04901334,2711.5,2710.6,0.07375753]
[1723368216712,0.04901334,2711.5,2710.6,2.32699644]
[1723368216910,2.4941,2712.1,2710.6,2.32699644]
[1723368216911,2.4941,2712.1,2710.8,2.35323891]
[1723368217098,0.04901334,2711.7,2711.0,2.25323891]
[1723368217298,0.04901334,2711.7,2711.1,2.32697653]
[1723368217498,0.04901334,2711.9,2711.2,0.55]
[1723368217728,0.04901334,2711.7,2711.2,0.55]
[1723368218001,0.04901334,2711.7,2711.2,3.55]
[1723368218464,0.04901334,2712.0,2711.2,0.55]
[1723368218980,0.04901334,2711.7,2711.2,0.55]
[1723368219679,0.04901334,2711.7,2711.0,6.26176154]
[1723368219880,0.04901334,2712.4,2711.4,5.71176154]
[1723368220081,0.04901334,2712.4,2711.1,9.18467705]
[1723368220082,0.04901334,2712.2,2711.5,6.26176154]
[1723368220248,0.04901334,2711.9,2711.5,7.00852263]
[1723368220444,0.04901334,2711.9,2711.5,9.26097391]
[1723368220752,0.04901334,2711.9,2711.5,3.55]
[1723368220940,2.4941,2712.7,2711.5,3.55]
[1723368220941,0.04901334,2711.6,2711.5,3.55]
[1723368221142,0.04901334,2711.9,2711.5,3.55]
[1723368221348,0.04901334,2711.8,2711.5,3.55]
[1723368221663,2.4941,2712.7,2711.6,3.07373319]
[1723368221664,0.04901334,2712.3,2711.6,3.07373319]
[1723368221866,0.04901334,2712.3,2711.7,4.00681029]
[1723368222040,0.04901334,2712.3,2711.8,3.0]
[1723368222242,2.4941,2712.7,2711.9,0.55]
[1723368222243,0.04901334,2712.1,2711.9,0.55]
[1723368222576,0.04901334,2712.4,2711.7,3.55]
[1723368222779,0.04901334,2712.4,2711.8,0.07372191]
[1723368222989,0.04901334,2712.4,2711.9,0.55]
[1723368223196,0.04901334,2712.4,2712.0,0.07372192]
[1723368223356,0.04901334,2712.4,2712.1,0.55]
[1723368223561,0.04901334,2712.0,2711.8,3.0]
[1723368223865,0.04901334,2712.0,2711.9,0.55]
[1723368224050,0.04901334,2712.0,2711.8,0.55]
[1723368224689,0.04901334,2711.8,2711.4,3.45681029]
[1723368224896,2.4941,2712.7,2711.2,3.45681029]
[1723368224897,0.04901334,2711.6,2711.2,3.45681029]
[1723368225392,0.04901334,2711.6,2711.2,3.98009219]
[1723368225570,0.04901334,2711.6,2711.2,0.5232819]
[1723368225772,0.04901334,2711.6,2711.2,4.2112819]
[1723368226109,0.04901334,2711.6,2711.3,3.0]
[1723368226257,0.04901334,2711.2,2710.9,4.35787638]
[1723368226585,0.04901334,2711.2,2710.9,3.72]
[1723368227097,0.04901334,2711.0,2710.8,3.688]
[1723368228368,0.04901334,2711.0,2710.9,3.0]
[1723368229087,0.04901334,2711.5,2710.9,3.07375534]
[1723368229291,0.04901334,2711.4,2711.0,0.073747]
[1723368229493,0.04901334,2711.6,2711.1,0.55]
[1723368229696,0.01,2711.7,2711.2,0.07374626]
[1723368229697,0.04901334,2711.4,2711.2,0.07374626]
[1723368229865,0.04901334,2711.4,2711.3,0.55]
[1723368230068,0.04901334,2711.4,2711.3,0.0737465]
[1723368230298,0.04901334,2711.6,2711.3,0.6237465]
[1723368230494,0.04901334,2711.6,2711.3,0.0737465]
[1723368230699,0.04901334,2711.6,2711.4,0.55]
[1723368230904,0.04901334,2711.6,2711.5,0.07374644]
[1723368231118,0.01,2711.7,2711.5,0.62374647]
[1723368231310,0.01,2711.7,2711.5,0.07374647]
[1723368231616,0.01,2711.7,2711.6,0.55]
[1723368232498,0.01,2711.7,2711.6,3.76172909]
[1723368232806,0.05901334,2711.7,2711.6,6.688]
[1723368233997,0.05901334,2711.7,2711.6,7.238]
[1723368234195,0.01,2711.7,2711.6,7.238]
[1723368234503,0.04901334,2712.0,2711.6,7.238]
[1723368234709,0.04901334,2712.0,2711.7,3.55]
[1723368235015,0.01,2712.1,2711.8,0.07372708]
[1723368235309,0.01,2712.1,2711.9,0.55]
[1723368235506,0.01,2712.1,2712.0,0.07372522]
[1723368235727,0.01,2712.3,2712.0,4.31172522]
[1723368235875,0.05901334,2712.3,2712.1,3.0]
[1723368236200,0.05901334,2712.3,2712.2,0.62371705]
[1723368236399,0.05901334,2712.3,2712.2,0.62372079]
[1723368236598,0.01,2712.3,2712.2,0.55]
[1723368236806,0.05901334,2712.3,2712.2,0.62372086]
[1723368237007,0.05901334,2712.3,2712.2,0.55]
[1723368237390,0.01,2712.3,2712.2,0.55]
[1723368237594,0.01,2712.5,2712.2,2.8423]
[1723368237791,0.04901334,2713.2,2712.4,6.3185727]
[1723368238045,0.04901334,2713.2,2712.7,2.25536881]
[1723368238183,0.04901334,2713.2,2712.8,0.55]
[1723368238384,0.04901334,2713.2,2712.9,0.07369358]
[1723368238584,0.04901334,2713.0,2712.8,3.55]
[1723368239122,0.04901334,2713.2,2712.9,3.0]
[1723368239311,0.04901334,2713.4,2713.0,0.55]
[1723368239510,2.2853,2713.9,2712.8,0.55]
[1723368239511,0.04901334,2713.2,2712.8,0.55]
[1723368239686,2.2853,2713.9,2712.8,0.55]
[1723368239687,0.04901334,2713.0,2712.8,0.55]
[1723368240484,0.04901334,2713.6,2712.9,3.688]
[1723368240684,0.04901334,2713.8,2713.3,3.688]
[1723368240884,0.04901334,2713.8,2713.4,3.07367758]
[1723368241121,0.04901334,2714.2,2713.5,0.55]
[1723368241327,0.04901334,2714.3,2713.7,3.688]
[1723368241488,0.04901334,2714.6,2714.1,3.688]
[1723368241684,0.04901334,2714.4,2714.2,0.62366031]
[1723368241888,0.04901334,2714.4,2714.3,0.07366275]
[1723368242187,2.4637,2715.0,2714.3,0.62366275]
[1723368242188,0.04901334,2714.9,2714.3,0.62366275]
[1723368242390,0.04901334,2714.9,2714.4,0.55]
[1723368242585,0.04901334,2714.9,2714.5,3.76165647]
[1723368242896,0.04901334,2715.2,2714.6,3.55]
[1723368243095,2.4637,2715.6,2714.7,0.07364709]
[1723368243096,0.04901334,2714.9,2714.7,0.07364709]
[1723368243313,0.04901334,2714.7,2714.6,3.0]
[1723368243512,0.04901334,2714.7,2714.2,3.0]
[1723368243697,0.04901334,2714.7,2714.3,0.55]
[1723368244122,2.4637,2715.6,2714.4,0.07365355]
[1723368244123,0.04901334,2715.0,2714.4,0.07365355]
[1723368244355,2.4637,2715.6,2714.5,4.238]
[1723368244356,0.04901334,2715.2,2714.5,4.238]
[1723368244556,0.04901334,2715.4,2714.9,3.688]
[1723368244767,0.04901334,2715.4,2715.0,3.62363989]
[1723368245054,0.04901334,2715.9,2715.3,3.688]
[1723368245360,0.005,2717.3,2715.3,3.688]
[1723368245361,2.4637,2717.1,2715.7,3.688]
[1723368245543,0.04901334,2716.6,2716.2,3.688]
[1723368245742,0.04901334,2716.6,2716.3,0.07360356]
[1723368245916,0.04901334,2716.6,2716.4,0.55]
[1723368246115,0.04901334,2716.6,2716.3,3.07360356]
[1723368246116,0.04901334,2716.4,2716.3,3.56568384]
[1723368246455,0.04901334,2716.1,2715.9,3.0]
[1723368246818,0.04901334,2716.4,2716.0,0.55]
[1723368247014,0.04901334,2716.1,2716.0,0.55]
[1723368247355,0.04901334,2716.4,2716.0,0.62361197]
[1723368247566,0.04901334,2716.4,2716.2,3.688]
[1723368247717,0.04901334,2716.4,2716.3,3.0]
[1723368247917,0.04901334,2716.4,2716.3,0.55]
[1723368248763,0.04901334,2716.6,2716.3,0.55]
[1723368248920,2.4637,2717.1,2716.3,0.55]
[1723368248921,0.04901334,2716.4,2716.3,0.55]
[1723368249813,0.04901334,2716.4,2715.9,3.0]
[1723368249814,0.04901334,2716.0,2715.9,3.0]
[1723368250154,0.04901334,2716.0,2715.8,3.71]
[1723368250155,0.04901334,2715.8,2715.3,3.71]
[1723368250340,0.04901334,2715.5,2715.3,3.71]
[1723368250654,0.04901334,2715.5,2714.9,3.72]
[1723368250854,0.04901334,2715.9,2715.0,0.07363257]
[1723368251150,0.04901334,2715.9,2714.9,5.22]
[1723368252067,0.04901334,2715.5,2715.0,0.3692]
[1723368252229,0.04901334,2715.7,2715.1,0.07363051]
[1723368252430,0.04901334,2715.9,2715.1,0.07363051]
[1723368252765,0.04901334,2715.5,2715.0,3.0]
[1723368252967,0.04901334,2715.8,2715.0,3.0]
[1723368253128,0.04901334,2715.7,2715.0,3.0]
[1723368253558,0.04901334,2715.5,2715.1,0.55]
[1723368253831,2.4637,2716.2,2715.2,0.07363132]
[1723368253832,0.04901334,2715.9,2715.2,0.07363132]
[1723368254058,0.04901334,2715.9,2715.3,0.62362973]
[1723368254257,0.005,2717.3,2715.3,4.26]
[1723368254258,0.04901334,2716.1,2715.3,4.26]
[1723368254441,0.04901334,2716.3,2715.4,3.0]
[1723368254647,0.04901334,2716.3,2715.5,0.55]
[1723368255088,0.04901334,2716.3,2715.6,1.474349]
[1723368255369,0.04901334,2716.3,2715.7,0.55]
[1723368255530,0.04901334,2716.5,2715.7,0.62361579]
[1723368255729,0.04901334,2716.3,2715.8,0.07361396]
[1723368255967,0.04901334,2716.3,2715.9,0.55]
[1723368256265,0.04901334,2716.5,2715.9,0.55]
[1723368256465,2.4637,2716.6,2716.0,0.07361398]
[1723368256466,0.04901334,2716.3,2716.0,0.07361398]
[1723368256763,0.04901334,2716.5,2716.1,0.62361408]
[1723368256973,0.04901334,2716.3,2715.8,0.55]
[1723368257356,0.04901334,2716.0,2715.8,3.55]
[1723368257538,0.04901334,2716.0,2715.8,0.55]
[1723368257745,0.04901334,2716.0,2715.9,3.0]
[1723368257953,0.04901334,2716.2,2715.9,0.55]
[1723368258158,0.04901334,2716.0,2715.9,0.55]
[1723368258371,0.04901334,2716.0,2715.7,3.0]
[1723368258372,0.04901334,2715.8,2715.7,3.0]
[1723368258575,0.04901334,2716.2,2715.6,4.474349]
[1723368258875,0.04901334,2716.2,2715.6,1.474349]
[1723368259474,0.04901334,2716.5,2715.6,1.474349]
[1723368259657,0.04901334,2716.5,2715.7,0.55]
[1723368260275,0.04901334,2716.5,2715.8,0.073616]
[1723368260580,0.04901334,2716.5,2715.9,0.55]
[1723368260741,0.04901334,2716.5,2716.0,0.07361601]
[1723368260941,0.04901334,2716.5,2716.1,0.55]
[1723368261152,0.04901334,2716.5,2716.2,0.07361345]
[1723368261346,0.04901334,2716.5,2716.3,0.62361344]
[1723368261551,0.04901334,2716.5,2716.4,0.55]
[1723368261751,0.04901334,2716.2,2716.1,0.55]
[1723368264090,0.04901334,2715.7,2715.6,1.474349]
[1723368264379,0.04901334,2715.1,2714.1,4.69062543]
[1723368264590,2.3706,2716.1,2714.7,1.474919]
[1723368264591,0.04901334,2714.9,2714.7,1.474919]
[1723368264959,0.04901334,2714.9,2714.1,41.4804]
[1723368265282,0.04901334,2714.9,2714.1,1.474965]
[1723368265487,0.04901334,2714.6,2714.1,1.474965]
[1723368265782,2.3706,2715.1,2713.7,3.72]
[1723368265783,0.04901334,2714.2,2713.7,3.72]
[1723368266197,0.04901334,2714.1,2713.7,3.72]
[1723368266549,0.04901334,2714.3,2713.9,1.475349]
[1723368266749,2.3706,2715.1,2713.9,1.475349]
[1723368266750,0.04901334,2714.1,2713.9,1.475349]
[1723368267453,0.04901334,2714.2,2713.9,1.475349]
[1723368268486,0.04901334,2714.2,2713.5,3.0]
[1723368268690,0.04901334,2714.2,2713.6,0.55]
[1723368268895,0.04901334,2713.9,2713.5,3.0]
[1723368269186,0.04901334,2714.3,2713.6,1.475391]
[1723368269373,0.04901334,2714.5,2713.7,3.52727186]
[1723368269575,0.04901334,2714.5,2713.8,3.07366044]
[1723368270148,0.04901334,2714.5,2713.9,0.55]
[1723368270353,0.04901334,2714.5,2714.0,0.07366052]
[1723368270548,0.04901334,2714.5,2714.1,0.55]
[1723368271068,2.3706,2715.1,2713.8,3.0]
[1723368271069,0.04901334,2714.3,2713.9,0.55]
[1723368271456,2.3706,2715.1,2713.9,0.55]
[1723368271457,0.04901334,2714.1,2713.9,0.55]
[1723368271650,0.04901334,2713.9,2713.7,3.0]
[1723368272388,2.41961334,2714.2,2713.7,3.0]
[1723368272694,0.04901334,2713.9,2713.7,3.0]
[1723368273051,0.04901334,2713.9,2713.7,6.45347439]
[1723368273254,0.04901334,2714.7,2713.7,6.45347439]
[1723368273454,0.04901334,2714.4,2714.0,3.681]
[1723368273701,0.04901334,2714.4,2714.1,3.55]
[1723368274561,0.04901334,2714.3,2714.1,3.55]
[1723368275498,0.04901334,2714.4,2714.1,3.55]
[1723368275800,0.04901334,2714.2,2714.1,3.55]
[1723368277966,0.04901334,2714.2,2714.1,3.0]
[1723368278288,0.04901334,2714.2,2713.6,5.156391]
[1723368278289,0.04901334,2713.9,2713.7,3.0]
[1723368278798,0.04901334,2713.9,2713.6,5.156391]
[1723368278799,0.04901334,2713.9,2713.6,3.681]
[1723368278964,0.04901334,2713.7,2713.2,6.54668008]
[1723368279301,0.04901334,2713.7,2713.4,1.475649]
[1723368279599,0.04901334,2713.3,2713.2,3.681]
[1723368279774,0.04901334,2713.3,2712.9,4.46129074]
[1723368279775,0.04901334,2713.1,2713.0,1.475834]
[1723368280163,0.04901334,2713.1,2712.9,0.3692]
[1723368280610,0.04901334,2713.1,2712.9,1.845117]
[1723368280785,0.04901334,2713.1,2712.9,0.3692]
[1723368281099,0.04901334,2712.7,2712.6,1.476081]
[1723368281456,0.04901334,2712.7,2712.4,3.681]
[1723368281660,0.04901334,2712.5,2712.2,2.81665275]
[1723368281921,2.3706,2713.4,2712.4,3.681]
[1723368281922,0.04901334,2713.0,2712.4,3.681]
[1723368282195,2.3706,2713.4,2712.4,3.681]
[1723368282196,0.04901334,2712.7,2712.4,3.681]
[1723368282407,0.04901334,2712.7,2712.5,0.07370714]
[1723368282887,0.04901334,2712.7,2712.4,3.681]
[1723368283077,0.04901334,2712.5,2712.4,3.681]
[1723368283275,0.04901334,2712.5,2712.2,2.81665275]
[1723368283481,0.04901334,2712.5,2712.2,0.5767042]
[1723368283675,0.04901334,2712.3,2712.2,0.5767042]
[1723368284000,0.04901334,2712.3,2712.1,1.476345]
[1723368284201,0.04901334,2712.3,2711.8,0.57756022]
[1723368284513,0.04901334,2711.9,2711.8,0.57756022]
[1723368285475,0.04901334,2711.6,2711.5,1.476662]
[1723368285903,0.04901334,2711.6,2711.1,0.57770804]
[1723368286111,2.429,2711.9,2711.1,0.57770804]
[1723368286112,0.04901334,2711.4,2711.1,0.57770804]
[1723368286424,0.04901334,2711.4,2711.1,2.05461304]
[1723368286720,0.04901334,2711.4,2711.1,0.57770804]
[1723368288598,0.04901334,2711.4,2711.2,0.55]
[1723368289051,0.04901334,2711.2,2711.1,3.0]
[1723368289339,0.04901334,2711.0,2710.8,1.477049]
[1723368289728,0.04901334,2710.8,2710.5,35.57775853]
[1723368289929,0.04901334,2710.8,2710.6,0.147715]
[1723368290514,2.47801334,2711.2,2710.6,0.147715]
[1723368290721,0.04901334,2711.2,2710.6,0.147715]
[1723368291214,2.429,2711.6,2710.6,0.147715]
[1723368291215,0.04901334,2710.7,2710.6,0.147715]
[1723368291416,2.47801334,2710.7,2710.6,0.147715]
[1723368294883,0.04901334,2710.7,2710.6,0.147715]
[1723368295548,0.04901334,2710.7,2710.6,0.697715]
[1723368296546,0.04901334,2710.9,2710.6,0.697715]
[1723368296889,3.681,2714.6,2710.6,0.697715]
[1723368296890,2.429,2711.6,2710.7,0.62376461]
[1723368297175,0.04901334,2711.1,2710.8,0.07375043]
[1723368297380,0.04901334,2711.1,2710.9,0.55]
[1723368297789,0.04901334,2711.1,2711.0,0.07375798]
[1723368298085,0.04901334,2710.8,2710.7,0.55]
[1723368298249,0.04901334,2710.8,2710.6,0.147715]
[1723368298250,2.47801334,2710.8,2710.6,0.147715]
[1723368301938,2.47801334,2710.8,2710.7,0.55]
[1723368302504,0.04901334,2710.8,2710.7,0.55]
[1723368302708,0.04901334,2711.2,2710.7,0.62376448]
[1723368302914,2.4566,2711.8,2710.9,3.681]
[1723368302915,0.04901334,2711.4,2710.9,3.681]
[1723368303136,0.04901334,2711.4,2711.0,3.62375177]
[1723368303707,2.4566,2711.8,2711.0,3.62375177]
[1723368303708,0.04901334,2711.5,2711.0,3.62375177]
[1723368304442,0.04901334,2711.3,2711.0,3.62375177]
[1723368304668,2.4566,2711.8,2711.0,6.08085177]
[1723368304669,0.04901334,2711.8,2711.0,6.08085177]
[1723368304804,0.04901334,2712.0,2711.7,3.681]
[1723368305008,0.04901334,2712.0,2711.8,0.62372465]
[1723368305206,0.04901334,2712.0,2711.8,3.62372465]
[1723368305441,0.04901334,2712.0,2711.8,0.62372465]
[1723368305649,0.04901334,2712.5,2711.8,3.62372465]
[1723368306006,0.04901334,2711.9,2711.8,3.55]
[1723368306426,0.04901334,2712.1,2711.8,0.55]
[1723368306805,2.4566,2712.8,2711.8,0.55]
[1723368306806,0.04901334,2711.9,2711.8,0.55]
[1723368307003,0.04901334,2711.7,2711.4,3.0]
[1723368307208,0.04901334,2711.7,2711.5,0.55]
[1723368307722,2.4566,2712.8,2711.6,0.07373903]
[1723368307723,0.04901334,2712.1,2711.6,0.07373903]
[1723368307937,0.04901334,2712.3,2711.8,3.681]
[1723368308136,0.04901334,2712.3,2711.9,3.07372511]
[1723368308404,0.04901334,2712.0,2711.9,3.07372511]
[1723368308632,0.04901334,2712.0,2711.9,3.55]
[1723368308947,0.04901334,2712.0,2711.9,3.0]
[1723368309166,0.04901334,2711.6,2711.5,3.0]
[1723368309618,0.04901334,2711.4,2711.3,3.0]
[1723368309824,2.4566,2711.9,2711.1,3.0]
[1723368309825,0.04901334,2711.2,2711.1,3.0]
[1723368310035,0.04901334,2711.2,2711.0,3.681]
[1723368310426,0.04901334,2711.2,2710.7,3.46530788]
[1723368310635,0.04901334,2710.8,2710.6,7.548715]
[1723368310844,0.04901334,2710.8,2710.6,0.147715]
[1723368311750,2.4566,2710.7,2710.6,0.147715]
[1723368311952,2.70716133,2710.7,2710.6,0.147715]
[1723368313462,2.70716133,2710.7,2709.3,0.57807635]
[1723368313463,0.04901334,2709.5,2709.3,0.57807635]
[1723368313642,0.04901334,2709.3,2709.2,0.1269452]
[1723368314154,2.50561334,2709.3,2709.2,0.1269452]
[1723368314361,0.04901334,2709.3,2709.2,0.1269452]
[1723368315053,2.50561334,2709.3,2709.2,0.1269452]